[Event "Betsys MČR v online bleskovém šachu 2021"]
[Site "Chess.com"]
[Date "2021.04.17"]
[Round "10"]
[White "penguinorodriguez"]
[Black "martin1804"]
[Result "1-0"]
[WhiteElo "2545"]
[BlackElo "2274"]
[TimeControl "180+1"]
[EndTime "10:39:02 PDT"]
[Termination "Uživatel penguinorodriguez zvítězil po vzdání soupeře"]

1. d4 {[%clk 0:02:59.4]} 1... Nf6 {[%clk 0:02:56.1]} 2. Nf3 {[%clk 0:02:59.5]}
2... d6 {[%clk 0:02:55.4]} 3. c4 {[%clk 0:02:59.3]} 3... Nbd7 {[%clk 0:02:52.5]}
4. Nc3 {[%clk 0:02:59.9]} 4... e5 {[%clk 0:02:51.1]} 5. Bg5 {[%clk 0:02:59.7]}
5... Be7 {[%clk 0:02:47.3]} 6. e3 {[%clk 0:02:59.7]} 6... c6 {[%clk 0:02:45.1]}
7. Qc2 {[%clk 0:02:59.6]} 7... Qc7 {[%clk 0:02:42.9]} 8. O-O-O {[%clk
0:02:58.2]} 8... a6 {[%clk 0:02:13.2]} 9. Kb1 {[%clk 0:02:38.6]} 9... Qb8 {[%clk
0:01:58.8]} 10. c5 {[%clk 0:02:31.5]} 10... exd4 {[%clk 0:01:49.3]} 11. cxd6
{[%clk 0:02:31.3]} 11... Bxd6 {[%clk 0:01:44]} 12. Nxd4 {[%clk 0:02:30.2]} 12...
O-O {[%clk 0:01:05.2]} 13. Nf5 {[%clk 0:02:29.2]} 13... Be5 {[%clk 0:01:04.7]}
14. f4 {[%clk 0:02:21.9]} 14... Bc7 {[%clk 0:00:59.5]} 15. Bd3 {[%clk
0:02:02.9]} 15... b5 {[%clk 0:00:57.2]} 16. Ne7+ {[%clk 0:01:58.8]} 16... Kh8
{[%clk 0:00:56.6]} 17. Nxc8 {[%clk 0:01:57.2]} 17... Qxc8 {[%clk 0:00:56.7]} 18.
Bf5 {[%clk 0:01:57.7]} 18... Qe8 {[%clk 0:00:56.2]} 19. e4 {[%clk 0:01:48.6]}
19... h6 {[%clk 0:00:52.5]} 20. Bxf6 {[%clk 0:01:46.1]} 20... Nxf6 {[%clk
0:00:53.4]} 21. e5 {[%clk 0:01:46.7]} 21... Ng8 {[%clk 0:00:44.7]} 22. Bd7
{[%clk 0:01:33.1]} 22... Qe7 {[%clk 0:00:39.1]} 23. Bxc6 {[%clk 0:01:33.2]}
23... Ra7 {[%clk 0:00:27.1]} 24. Nd5 {[%clk 0:01:31.3]} 24... Qh4 {[%clk
0:00:26.5]} 25. g3 {[%clk 0:01:21.3]} 25... Qh3 {[%clk 0:00:23.5]} 26. Qc5
{[%clk 0:01:15.8]} 1-0

[Event "Betsys MČR v online bleskovém šachu 2021"]
[Site "Chess.com"]
[Date "2021.04.17"]
[Round "10"]
[White "vadoto"]
[Black "jarosymon"]
[Result "1-0"]
[WhiteElo "1417"]
[BlackElo "1701"]
[TimeControl "180+1"]
[EndTime "10:39:04 PDT"]
[Termination "Uživatel vadoto zvítězil matem"]

1. e4 {[%clk 0:02:59.8]} 1... d5 {[%clk 0:02:57]} 2. exd5 {[%clk 0:02:58.9]}
2... Nf6 {[%clk 0:02:56.1]} 3. Nf3 {[%clk 0:02:57.1]} 3... Qxd5 {[%clk
0:02:54.5]} 4. Nc3 {[%clk 0:02:56.6]} 4... Qa5 {[%clk 0:02:54.5]} 5. Be2 {[%clk
0:02:52.7]} 5... c6 {[%clk 0:02:54.5]} 6. O-O {[%clk 0:02:50.3]} 6... Bf5 {[%clk
0:02:54.2]} 7. d4 {[%clk 0:02:49.9]} 7... e6 {[%clk 0:02:54.1]} 8. Bg5 {[%clk
0:02:47.2]} 8... Bd6 {[%clk 0:02:53.2]} 9. h3 {[%clk 0:02:35.5]} 9... h6 {[%clk
0:02:48.1]} 10. Bh4 {[%clk 0:02:35]} 10... g5 {[%clk 0:02:44.1]} 11. Bg3 {[%clk
0:02:34.6]} 11... Bxg3 {[%clk 0:02:39.7]} 12. fxg3 {[%clk 0:02:34.3]} 12... Nbd7
{[%clk 0:02:39.3]} 13. Bd3 {[%clk 0:02:28.7]} 13... Bxd3 {[%clk 0:02:30.9]} 14.
Qxd3 {[%clk 0:02:28.1]} 14... O-O-O {[%clk 0:02:28.1]} 15. Ne5 {[%clk
0:02:26.8]} 15... Rdf8 {[%clk 0:02:16.4]} 16. Nxd7 {[%clk 0:02:23.1]} 16... Nxd7
{[%clk 0:02:14.6]} 17. Rf3 {[%clk 0:02:13.9]} 17... f5 {[%clk 0:02:09.4]} 18.
Re1 {[%clk 0:02:11.8]} 18... e5 {[%clk 0:02:06.2]} 19. Rfe3 {[%clk 0:01:52.7]}
19... e4 {[%clk 0:02:01.1]} 20. Qc4 {[%clk 0:01:51.2]} 20... Rf6 {[%clk
0:01:42.7]} 21. g4 {[%clk 0:01:43.4]} 21... fxg4 {[%clk 0:01:31.9]} 22. Rxe4
{[%clk 0:01:42.7]} 22... gxh3 {[%clk 0:01:24.2]} 23. Re8+ {[%clk 0:01:38.7]}
23... Rxe8 {[%clk 0:01:22.4]} 24. Rxe8+ {[%clk 0:01:37.6]} 24... Kc7 {[%clk
0:01:16.4]} 25. gxh3 {[%clk 0:01:35.8]} 25... Qf5 {[%clk 0:01:08.3]} 26. Qd3
{[%clk 0:01:15]} 26... Qf2+ {[%clk 0:01:05.3]} 27. Kh1 {[%clk 0:01:14.6]} 27...
Qe1+ {[%clk 0:01:01.5]} 28. Rxe1 {[%clk 0:01:09.1]} 28... a6 {[%clk 0:00:58.2]}
29. Qg3+ {[%clk 0:01:05.3]} 29... Kb6 {[%clk 0:00:56.9]} 30. Re7 {[%clk
0:01:04.7]} 30... Nf8 {[%clk 0:00:51.2]} 31. Qc7+ {[%clk 0:01:03.9]} 31... Ka7
{[%clk 0:00:45.6]} 32. Qxb7# {[%clk 0:01:04]} 1-0

[Event "Betsys MČR v online bleskovém šachu 2021"]
[Site "Chess.com"]
[Date "2021.04.17"]
[Round "10"]
[White "sachovybukowski"]
[Black "Danyjel"]
[Result "1-0"]
[WhiteElo "1961"]
[BlackElo "1694"]
[TimeControl "180+1"]
[EndTime "10:39:06 PDT"]
[Termination "Uživatel sachovybukowski zvítězil po vzdání soupeře"]

1. d4 {[%clk 0:03:00.9]} 1... Nf6 {[%clk 0:02:58]} 2. Bg5 {[%clk 0:03:00.3]}
2... e6 {[%clk 0:02:57.7]} 3. c3 {[%clk 0:02:59.8]} 3... Be7 {[%clk 0:02:57.7]}
4. e3 {[%clk 0:03:00.1]} 4... d5 {[%clk 0:02:57.7]} 5. Bd3 {[%clk 0:03:00.2]}
5... O-O {[%clk 0:02:57.5]} 6. Nd2 {[%clk 0:03:00.5]} 6... h6 {[%clk 0:02:57.6]}
7. Bh4 {[%clk 0:03:00.1]} 7... b6 {[%clk 0:02:54.6]} 8. f4 {[%clk 0:03:00.2]}
8... Bb7 {[%clk 0:02:54.6]} 9. Ngf3 {[%clk 0:03:00.5]} 9... Nbd7 {[%clk
0:02:54.3]} 10. Qe2 {[%clk 0:03:00.7]} 10... c5 {[%clk 0:02:52.7]} 11. O-O
{[%clk 0:03:00.3]} 11... Ne4 {[%clk 0:02:21.7]} 12. Bxe7 {[%clk 0:02:59.4]}
12... Qxe7 {[%clk 0:02:21.3]} 13. Kh1 {[%clk 0:02:59.6]} 13... f5 {[%clk
0:02:18.6]} 14. Rg1 {[%clk 0:02:59.6]} 14... Ndf6 {[%clk 0:02:05.1]} 15. Ne5
{[%clk 0:02:58.4]} 15... Ng4 {[%clk 0:01:43.3]} 16. Nxg4 {[%clk 0:02:55.9]}
16... fxg4 {[%clk 0:01:42.8]} 17. Bxe4 {[%clk 0:02:52.4]} 17... dxe4 {[%clk
0:01:40.1]} 18. Qxg4 {[%clk 0:02:52.1]} 18... cxd4 {[%clk 0:01:38.5]} 19. cxd4
{[%clk 0:02:49.3]} 19... Rac8 {[%clk 0:01:35.6]} 20. Rgc1 {[%clk 0:02:39.5]}
20... Rf6 {[%clk 0:01:21.2]} 21. Rxc8+ {[%clk 0:02:36.4]} 21... Bxc8 {[%clk
0:01:20.7]} 22. Rc1 {[%clk 0:02:34.8]} 22... Bb7 {[%clk 0:01:18.5]} 23. a3
{[%clk 0:02:30.4]} 23... Kh7 {[%clk 0:01:10.5]} 24. Qe2 {[%clk 0:02:08.9]} 24...
Qf7 {[%clk 0:00:46.4]} 25. Qc4 {[%clk 0:02:07.3]} 25... Qg6 {[%clk 0:00:39.4]}
26. Qe2 {[%clk 0:02:03.7]} 26... Rf7 {[%clk 0:00:30.8]} 27. b4 {[%clk
0:01:52.2]} 27... Qf6 {[%clk 0:00:22.8]} 28. h3 {[%clk 0:01:43]} 28... Qh4
{[%clk 0:00:19.2]} 29. Kh2 {[%clk 0:01:41]} 29... g5 {[%clk 0:00:16.7]} 30. g3
{[%clk 0:01:33.9]} 1-0

[Event "Betsys MČR v online bleskovém šachu 2021"]
[Site "Chess.com"]
[Date "2021.04.17"]
[Round "10"]
[White "Tomasn2003"]
[Black "TarantAnk"]
[Result "0-1"]
[WhiteElo "1152"]
[BlackElo "1725"]
[TimeControl "180+1"]
[EndTime "10:39:11 PDT"]
[Termination "Uživatel TarantAnk zvítězil po vzdání soupeře"]

1. e4 {[%clk 0:02:56.9]} 1... c5 {[%clk 0:02:59.5]} 2. Nf3 {[%clk 0:02:57]} 2...
d6 {[%clk 0:02:59.9]} 3. d4 {[%clk 0:02:56.7]} 3... cxd4 {[%clk 0:02:59.8]} 4.
Qxd4 {[%clk 0:02:56.7]} 4... Nc6 {[%clk 0:03:00.1]} 5. Bb5 {[%clk 0:02:56.6]}
5... Bd7 {[%clk 0:02:59.8]} 6. Bxc6 {[%clk 0:02:55.3]} 6... bxc6 {[%clk
0:03:00]} 7. Nc3 {[%clk 0:02:55.3]} 7... Nf6 {[%clk 0:03:00.4]} 8. O-O {[%clk
0:02:52.7]} 8... g6 {[%clk 0:03:00.4]} 9. e5 {[%clk 0:02:45.2]} 9... c5 {[%clk
0:02:45.6]} 10. Qd3 {[%clk 0:02:35]} 10... Bf5 {[%clk 0:02:40.9]} 11. Qd1 {[%clk
0:02:24.6]} 11... dxe5 {[%clk 0:02:40.4]} 12. Nxe5 {[%clk 0:02:18.9]} 12... Bg7
{[%clk 0:02:32.1]} 13. Qxd8+ {[%clk 0:02:05.6]} 13... Rxd8 {[%clk 0:02:31.4]}
14. Nc6 {[%clk 0:02:04.5]} 14... Rd7 {[%clk 0:02:27.2]} 15. Be3 {[%clk
0:01:47.1]} 15... Rc7 {[%clk 0:02:13.8]} 16. Ne5 {[%clk 0:01:23.9]} 16... Bxc2
{[%clk 0:01:56.8]} 17. Nb5 {[%clk 0:01:22.8]} 17... Rb7 {[%clk 0:01:56.4]} 18.
Rac1 {[%clk 0:01:10.3]} 18... Bf5 {[%clk 0:01:43.7]} 19. Rxc5 {[%clk 0:01:05]}
19... O-O {[%clk 0:01:43.4]} 20. Rfc1 {[%clk 0:00:49.4]} 20... Be6 {[%clk
0:01:38]} 21. b3 {[%clk 0:00:29.8]} 21... Ne4 {[%clk 0:01:35.8]} 22. Nd4 {[%clk
0:00:27]} 22... Nxc5 {[%clk 0:01:31.6]} 23. Nxe6 {[%clk 0:00:26.8]} 23... Nxe6
{[%clk 0:01:31.2]} 24. Nc6 {[%clk 0:00:23.4]} 24... a6 {[%clk 0:01:22.3]} 25.
Rd1 {[%clk 0:00:19.2]} 25... Rc8 {[%clk 0:01:18.2]} 26. Nb4 {[%clk 0:00:11.2]}
26... Rxb4 {[%clk 0:01:17.4]} 0-1

[Event "Betsys MČR v online bleskovém šachu 2021"]
[Site "Chess.com"]
[Date "2021.04.17"]
[Round "10"]
[White "matej-c"]
[Black "Tomasbezdek07"]
[Result "1-0"]
[WhiteElo "1952"]
[BlackElo "1696"]
[TimeControl "180+1"]
[EndTime "10:39:16 PDT"]
[Termination "Uživatel matej-c zvítězil po vzdání soupeře"]

1. d4 {[%clk 0:03:00.9]} 1... d5 {[%clk 0:02:54.4]} 2. c4 {[%clk 0:03:00.9]}
2... e5 {[%clk 0:02:54.6]} 3. dxe5 {[%clk 0:03:00.7]} 3... d4 {[%clk 0:02:54.8]}
4. Nf3 {[%clk 0:03:01]} 4... Nc6 {[%clk 0:02:54.8]} 5. g3 {[%clk 0:03:01.4]}
5... Nge7 {[%clk 0:02:52.7]} 6. Bg2 {[%clk 0:03:01.8]} 6... Ng6 {[%clk
0:02:53.3]} 7. O-O {[%clk 0:03:01.3]} 7... Bc5 {[%clk 0:02:46.1]} 8. Nbd2 {[%clk
0:02:55.7]} 8... O-O {[%clk 0:02:44.9]} 9. Ne4 {[%clk 0:02:54.7]} 9... Be7
{[%clk 0:02:33.9]} 10. b3 {[%clk 0:02:48.6]} 10... Ngxe5 {[%clk 0:02:31.9]} 11.
Bb2 {[%clk 0:02:46.1]} 11... Nxf3+ {[%clk 0:02:27]} 12. Bxf3 {[%clk 0:02:43.2]}
12... Bf5 {[%clk 0:02:26.8]} 13. a3 {[%clk 0:02:09.3]} 13... Re8 {[%clk
0:02:21.8]} 14. Qd2 {[%clk 0:01:52.8]} 14... Bxe4 {[%clk 0:02:02.2]} 15. Bxe4
{[%clk 0:01:48.5]} 15... Bg5 {[%clk 0:01:46.5]} 16. Qd3 {[%clk 0:01:42.4]} 16...
Bf6 {[%clk 0:01:38.2]} 17. Bxh7+ {[%clk 0:01:38.9]} 17... Kh8 {[%clk 0:01:35.9]}
18. Be4 {[%clk 0:01:35.3]} 18... Qe7 {[%clk 0:01:28.7]} 19. Bxc6 {[%clk
0:01:29.9]} 19... bxc6 {[%clk 0:01:27.1]} 20. Rfe1 {[%clk 0:01:26]} 20... c5
{[%clk 0:01:25]} 21. Qf5 {[%clk 0:01:24.6]} 21... Rad8 {[%clk 0:01:15.1]} 22.
Rad1 {[%clk 0:01:23.4]} 22... Kg8 {[%clk 0:00:45.4]} 23. Rd3 {[%clk 0:01:22.2]}
23... a5 {[%clk 0:00:39]} 24. a4 {[%clk 0:01:19.1]} 24... Qd6 {[%clk 0:00:35.2]}
25. Bc1 {[%clk 0:01:12]} 25... Re5 {[%clk 0:00:29.2]} 26. Qh3 {[%clk 0:01:05.1]}
26... Rde8 {[%clk 0:00:28.8]} 27. Bf4 {[%clk 0:01:02.6]} 1-0

[Event "Betsys MČR v online bleskovém šachu 2021"]
[Site "Chess.com"]
[Date "2021.04.17"]
[Round "10"]
[White "Honza_13"]
[Black "masterofbuzkashi"]
[Result "0-1"]
[WhiteElo "1934"]
[BlackElo "2233"]
[TimeControl "180+1"]
[EndTime "10:39:22 PDT"]
[Termination "Uživatel masterofbuzkashi zvítězil po vzdání soupeře"]

1. Nf3 {[%clk 0:03:00.9]} 1... c5 {[%clk 0:02:59.8]} 2. g3 {[%clk 0:02:59.8]}
2... Nc6 {[%clk 0:03:00.4]} 3. d4 {[%clk 0:02:58.6]} 3... cxd4 {[%clk
0:02:59.2]} 4. Nxd4 {[%clk 0:02:57.8]} 4... g6 {[%clk 0:02:59.2]} 5. b3 {[%clk
0:02:56.7]} 5... Bg7 {[%clk 0:02:59.4]} 6. Bb2 {[%clk 0:02:56.4]} 6... Nf6
{[%clk 0:02:58.7]} 7. Bg2 {[%clk 0:02:56]} 7... O-O {[%clk 0:02:58.5]} 8. O-O
{[%clk 0:02:55.6]} 8... d5 {[%clk 0:02:58.5]} 9. c4 {[%clk 0:02:51.4]} 9... e6
{[%clk 0:02:51]} 10. Na3 {[%clk 0:02:42.4]} 10... Bd7 {[%clk 0:02:48]} 11. Rc1
{[%clk 0:02:38.6]} 11... Nxd4 {[%clk 0:02:47.3]} 12. Bxd4 {[%clk 0:02:37.6]}
12... b6 {[%clk 0:02:44]} 13. Bxf6 {[%clk 0:02:32.6]} 13... Bxf6 {[%clk
0:02:42.2]} 14. cxd5 {[%clk 0:02:31.2]} 14... Bb2 {[%clk 0:02:38.2]} 15. dxe6
{[%clk 0:02:25.8]} 15... Bxe6 {[%clk 0:02:35.2]} 16. Bxa8 {[%clk 0:02:20.8]}
16... Qxa8 {[%clk 0:02:34.1]} 17. Nb5 {[%clk 0:01:59.1]} 17... Bh3 {[%clk
0:02:30.8]} 18. f3 {[%clk 0:01:52.7]} 18... Bxc1 {[%clk 0:02:22]} 19. Qxc1
{[%clk 0:01:50.4]} 19... Qd5 {[%clk 0:02:19.3]} 20. Nc7 {[%clk 0:01:37.9]} 20...
Qe5 {[%clk 0:02:07.3]} 21. f4 {[%clk 0:00:52.8]} 21... Qxe2 {[%clk 0:01:36.8]}
22. Rf2 {[%clk 0:00:48.7]} 22... Qe4 {[%clk 0:01:30.6]} 23. Nb5 {[%clk
0:00:12.3]} 23... Re8 {[%clk 0:01:27.8]} 24. Nd6 {[%clk 0:00:03.7]} 24... Qe1+
{[%clk 0:01:27.3]} 25. Rf1 {[%clk 0:00:03]} 25... Bxf1 {[%clk 0:01:22.3]} 26.
Qxe1 {[%clk 0:00:01.4]} 26... Rxe1 {[%clk 0:01:19.6]} 27. Kf2 {[%clk 0:00:01.8]}
27... Ra1 {[%clk 0:01:19.2]} 28. Ne4 {[%clk 0:00:02]} 0-1

[Event "Betsys MČR v online bleskovém šachu 2021"]
[Site "Chess.com"]
[Date "2021.04.17"]
[Round "10"]
[White "fadamos"]
[Black "tucnak64"]
[Result "1-0"]
[WhiteElo "2303"]
[BlackElo "2130"]
[TimeControl "180+1"]
[EndTime "10:39:24 PDT"]
[Termination "Uživatel fadamos zvítězil po vzdání soupeře"]

1. e4 {[%clk 0:03:00.6]} 1... c5 {[%clk 0:03:00.5]} 2. Nf3 {[%clk 0:03:00.7]}
2... e6 {[%clk 0:03:01.1]} 3. d4 {[%clk 0:03:01.1]} 3... cxd4 {[%clk 0:03:01.7]}
4. Nxd4 {[%clk 0:03:02]} 4... a6 {[%clk 0:03:01.9]} 5. Nc3 {[%clk 0:03:02.2]}
5... b5 {[%clk 0:03:01.9]} 6. Bd3 {[%clk 0:02:55.6]} 6... Bb7 {[%clk 0:03:01.6]}
7. O-O {[%clk 0:02:54.2]} 7... Qb6 {[%clk 0:03:00.8]} 8. Be3 {[%clk 0:02:53]}
8... Bc5 {[%clk 0:02:59.1]} 9. Nce2 {[%clk 0:02:49.2]} 9... Nc6 {[%clk
0:02:53.8]} 10. c3 {[%clk 0:02:47.1]} 10... Nf6 {[%clk 0:02:47.8]} 11. b4 {[%clk
0:02:38.9]} 11... Bxd4 {[%clk 0:02:46.6]} 12. Nxd4 {[%clk 0:02:39.4]} 12... Qc7
{[%clk 0:02:41.4]} 13. Re1 {[%clk 0:02:34.5]} 13... O-O {[%clk 0:02:36.5]} 14.
Rc1 {[%clk 0:02:34]} 14... Ne5 {[%clk 0:02:36.1]} 15. Bf4 {[%clk 0:02:30.9]}
15... d6 {[%clk 0:02:33.6]} 16. Bb1 {[%clk 0:02:23.7]} 16... Rfd8 {[%clk
0:02:30.9]} 17. Bg3 {[%clk 0:02:23.3]} 17... Rac8 {[%clk 0:02:27.1]} 18. h3
{[%clk 0:02:23.4]} 18... Qb6 {[%clk 0:02:18.3]} 19. a4 {[%clk 0:02:20.5]} 19...
Ng6 {[%clk 0:02:06.9]} 20. axb5 {[%clk 0:02:07.4]} 20... axb5 {[%clk 0:02:05.1]}
21. Qe2 {[%clk 0:02:07.1]} 21... e5 {[%clk 0:01:44.7]} 22. Nf5 {[%clk
0:02:02.5]} 22... Rc7 {[%clk 0:01:38.4]} 23. Red1 {[%clk 0:01:50.7]} 23... Ne7
{[%clk 0:01:33]} 24. Bxe5 {[%clk 0:01:35.2]} 24... Nxf5 {[%clk 0:01:26.5]} 25.
Bxf6 {[%clk 0:01:30]} 25... gxf6 {[%clk 0:01:22.2]} 26. exf5 {[%clk 0:01:30.2]}
26... Rc4 {[%clk 0:01:16.8]} 27. Bd3 {[%clk 0:01:22.8]} 27... Rf4 {[%clk
0:01:16.1]} 28. Rc2 {[%clk 0:00:59.4]} 28... Kh8 {[%clk 0:01:12.5]} 29. Qe7
{[%clk 0:00:50.4]} 29... Rg8 {[%clk 0:01:10.8]} 30. Qxf6+ {[%clk 0:00:50.7]}
30... Rg7 {[%clk 0:01:10.8]} 31. Bf1 {[%clk 0:00:44.7]} 31... Qc6 {[%clk
0:01:05.9]} 32. Rxd6 {[%clk 0:00:41.6]} 32... Qe4 {[%clk 0:00:52.8]} 33. Rd8+
{[%clk 0:00:40.8]} 1-0

[Event "Betsys MČR v online bleskovém šachu 2021"]
[Site "Chess.com"]
[Date "2021.04.17"]
[Round "10"]
[White "VojtaT"]
[Black "domecek"]
[Result "0-1"]
[WhiteElo "1733"]
[BlackElo "1973"]
[TimeControl "180+1"]
[EndTime "10:39:25 PDT"]
[Termination "Uživatel domecek zvítězil po vzdání soupeře"]

1. e4 {[%clk 0:03:00.9]} 1... c6 {[%clk 0:02:59.4]} 2. d4 {[%clk 0:02:59.4]}
2... d5 {[%clk 0:02:59.7]} 3. f3 {[%clk 0:02:59.8]} 3... g6 {[%clk 0:02:59.4]}
4. e5 {[%clk 0:02:59.2]} 4... h5 {[%clk 0:02:58.7]} 5. Bd3 {[%clk 0:02:57.3]}
5... Nh6 {[%clk 0:02:58.7]} 6. Ne2 {[%clk 0:02:43.6]} 6... a6 {[%clk 0:02:55.8]}
7. Nbc3 {[%clk 0:02:42.4]} 7... Bf5 {[%clk 0:02:53.9]} 8. Ng3 {[%clk 0:02:22.9]}
8... e6 {[%clk 0:02:47.5]} 9. Nxf5 {[%clk 0:02:21.3]} 9... Nxf5 {[%clk
0:02:46.8]} 10. Ne2 {[%clk 0:02:10.7]} 10... c5 {[%clk 0:02:45]} 11. c3 {[%clk
0:02:08.2]} 11... Qb6 {[%clk 0:02:44]} 12. Bxf5 {[%clk 0:02:04.4]} 12... gxf5
{[%clk 0:02:43.3]} 13. Qb3 {[%clk 0:02:02.9]} 13... Qxb3 {[%clk 0:02:41.3]} 14.
axb3 {[%clk 0:02:03.8]} 14... Nc6 {[%clk 0:02:40.5]} 15. Bg5 {[%clk 0:01:57.6]}
15... cxd4 {[%clk 0:02:37.1]} 16. cxd4 {[%clk 0:01:52.4]} 16... Kd7 {[%clk
0:02:33.7]} 17. Kf2 {[%clk 0:01:41.3]} 17... Rc8 {[%clk 0:02:30.7]} 18. Rhc1
{[%clk 0:01:38]} 18... Bb4 {[%clk 0:02:13.1]} 19. h4 {[%clk 0:01:26.8]} 19...
Be7 {[%clk 0:01:56.3]} 20. f4 {[%clk 0:01:20.2]} 20... Bd8 {[%clk 0:01:42.9]}
21. Nc3 {[%clk 0:01:06.1]} 21... Bb6 {[%clk 0:01:33.4]} 22. Na4 {[%clk
0:00:55.9]} 22... Bxd4+ {[%clk 0:01:32.2]} 23. Ke2 {[%clk 0:00:54.2]} 23... Ba7
{[%clk 0:01:17.1]} 24. Nc5+ {[%clk 0:00:53.6]} 24... Bxc5 {[%clk 0:01:15.9]} 25.
Rxc5 {[%clk 0:00:54.5]} 25... Nd4+ {[%clk 0:01:07.9]} 26. Kd3 {[%clk 0:00:47.3]}
26... Rxc5 {[%clk 0:00:55.6]} 27. Kxd4 {[%clk 0:00:47.3]} 27... Rhc8 {[%clk
0:00:54.4]} 28. b4 {[%clk 0:00:38.6]} 28... Rc4+ {[%clk 0:00:53.5]} 29. Kd3
{[%clk 0:00:38.9]} 29... Rxb4 {[%clk 0:00:52.2]} 0-1

[Event "Betsys MČR v online bleskovém šachu 2021"]
[Site "Chess.com"]
[Date "2021.04.17"]
[Round "10"]
[White "PetrSoucek"]
[Black "YoungMegaMind"]
[Result "0-1"]
[WhiteElo "2013"]
[BlackElo "2226"]
[TimeControl "180+1"]
[EndTime "10:39:35 PDT"]
[Termination "Uživatel YoungMegaMind zvítězil na čas"]

1. d4 {[%clk 0:03:00.9]} 1... Nf6 {[%clk 0:02:59.4]} 2. Bf4 {[%clk 0:02:55.3]}
2... e6 {[%clk 0:02:48.8]} 3. e3 {[%clk 0:02:52.6]} 3... d5 {[%clk 0:02:48.7]}
4. c3 {[%clk 0:02:49.9]} 4... Bd6 {[%clk 0:02:48]} 5. Bg3 {[%clk 0:02:49.6]}
5... c5 {[%clk 0:02:45.5]} 6. Nd2 {[%clk 0:02:48.9]} 6... b6 {[%clk 0:02:45.2]}
7. Ngf3 {[%clk 0:02:48.6]} 7... Bb7 {[%clk 0:02:45.4]} 8. Ne5 {[%clk 0:02:47.6]}
8... Qc7 {[%clk 0:02:41.5]} 9. Bd3 {[%clk 0:02:47.1]} 9... Nbd7 {[%clk 0:02:40]}
10. f4 {[%clk 0:02:45.1]} 10... O-O {[%clk 0:02:35.4]} 11. O-O {[%clk 0:02:42]}
11... Ne4 {[%clk 0:02:26.7]} 12. Bxe4 {[%clk 0:02:36.4]} 12... dxe4 {[%clk
0:02:27.6]} 13. Ndc4 {[%clk 0:02:27.7]} 13... f6 {[%clk 0:02:12.8]} 14. Nxd6
{[%clk 0:01:39.6]} 14... Qxd6 {[%clk 0:02:08.7]} 15. Nc4 {[%clk 0:01:16.6]}
15... Qe7 {[%clk 0:02:06.4]} 16. f5 {[%clk 0:01:12.4]} 16... e5 {[%clk 0:01:50]}
17. Qa4 {[%clk 0:00:17.3]} 17... a6 {[%clk 0:01:25.7]} 18. Qc2 {[%clk
0:00:10.1]} 18... Bd5 {[%clk 0:01:04.9]} 19. Nd2 {[%clk 0:00:08]} 19... exd4
{[%clk 0:01:02.4]} 20. cxd4 {[%clk 0:00:05.7]} 20... cxd4 {[%clk 0:00:57.9]} 21.
exd4 {[%clk 0:00:05.9]} 21... Rfc8 {[%clk 0:00:56.9]} 22. Qd1 {[%clk 0:00:02.8]}
22... b5 {[%clk 0:00:53.1]} 0-1

[Event "Betsys MČR v online bleskovém šachu 2021"]
[Site "Chess.com"]
[Date "2021.04.17"]
[Round "10"]
[White "ReceptiveYoyo"]
[Black "marfuss"]
[Result "0-1"]
[WhiteElo "1367"]
[BlackElo "1975"]
[TimeControl "180+1"]
[EndTime "10:39:36 PDT"]
[Termination "Uživatel marfuss zvítězil matem"]

1. d4 {[%clk 0:02:59.8]} 1... f5 {[%clk 0:02:59.7]} 2. c4 {[%clk 0:02:59]} 2...
Nf6 {[%clk 0:03:00]} 3. e3 {[%clk 0:02:59.3]} 3... g6 {[%clk 0:03:00.6]} 4. Nf3
{[%clk 0:02:59.6]} 4... Bg7 {[%clk 0:03:01.3]} 5. Bd3 {[%clk 0:02:59.9]} 5...
O-O {[%clk 0:03:01.1]} 6. O-O {[%clk 0:02:59.9]} 6... d6 {[%clk 0:03:01.4]} 7.
Nc3 {[%clk 0:02:59.8]} 7... c6 {[%clk 0:03:01.3]} 8. Re1 {[%clk 0:02:58]} 8...
Na6 {[%clk 0:02:51.3]} 9. e4 {[%clk 0:02:57.7]} 9... fxe4 {[%clk 0:02:44.6]} 10.
Nxe4 {[%clk 0:02:58.6]} 10... Bf5 {[%clk 0:02:36.1]} 11. Nxf6+ {[%clk
0:02:57.1]} 11... Rxf6 {[%clk 0:02:36.4]} 12. Bxf5 {[%clk 0:02:57.1]} 12... Rxf5
{[%clk 0:02:36.5]} 13. Qe2 {[%clk 0:02:56.8]} 13... e5 {[%clk 0:02:20.4]} 14.
Bg5 {[%clk 0:02:38.3]} 14... Qf8 {[%clk 0:02:07.1]} 15. dxe5 {[%clk 0:02:24.2]}
15... dxe5 {[%clk 0:01:41.1]} 16. Qe3 {[%clk 0:02:23.8]} 16... Nc7 {[%clk
0:01:29.4]} 17. b3 {[%clk 0:02:09.2]} 17... e4 {[%clk 0:01:16.8]} 18. Nd4 {[%clk
0:01:57.5]} 18... Rxg5 {[%clk 0:01:03.8]} 19. Qxg5 {[%clk 0:01:25.6]} 19... Bxd4
{[%clk 0:01:03.6]} 20. Qd2 {[%clk 0:01:11.9]} 20... Bxa1 {[%clk 0:01:01.5]} 21.
Rxa1 {[%clk 0:01:11.7]} 21... Rd8 {[%clk 0:00:58.7]} 22. Qe3 {[%clk 0:01:08.3]}
22... Qe7 {[%clk 0:00:35.2]} 23. Re1 {[%clk 0:01:03]} 23... Ne8 {[%clk
0:00:24.9]} 24. Qxe4 {[%clk 0:00:58.7]} 24... Qxe4 {[%clk 0:00:25.2]} 25. Rxe4
{[%clk 0:00:59.2]} 25... Rd1+ {[%clk 0:00:25.4]} 26. Re1 {[%clk 0:00:37.7]}
26... Rxe1# {[%clk 0:00:25.5]} 0-1